[Event "Titled Tuesday Blitz November 07 Late 2023"]
[White "FuenfgegenWilly"]
[Black "Lamard, Guillaume"]
[BlackFideId "600261"]
[WhiteElo "2458"]
[BlackElo "2641"]
[Result "1-0"]
[Round "10"]
[TimeControl "180+1"]
[Date "2023.11.07"]
[WhiteClock "0:01:28"]
[BlackClock "0:00:37"]
[Board "33"]

1. e4 {[%clk 0:03:00]}  c5 {[%clk 0:02:24]} 2. Nc3 {[%clk 0:02:58]}  Nc6 {[%clk 0:02:23]} 3. f4 {[%clk 0:02:58]}  g6 {[%clk 0:02:23]} 4. Nf3 {[%clk 0:02:59]}  Bg7 {[%clk 0:02:23]} 5. Bb5 {[%clk 0:03:00]}  e6 {[%clk 0:02:24]} 6. Bxc6 {[%clk 0:03:00]}  Ne7 {[%clk 0:02:24]} 7. Bb5 {[%clk 0:02:58]}  a6 {[%clk 0:02:21]} 8. Be2 {[%clk 0:02:57]}  O-O {[%clk 0:02:21]} 9. d3 {[%clk 0:02:58]}  b5 {[%clk 0:02:21]} 10. Be3 {[%clk 0:02:56]}  Bb7 {[%clk 0:02:22]} 11. Bxc5 {[%clk 0:02:56]}  d6 {[%clk 0:02:21]} 12. Be3 {[%clk 0:02:55]}  b4 {[%clk 0:02:22]} 13. Na4 {[%clk 0:02:55]}  d5 {[%clk 0:02:22]} 14. e5 {[%clk 0:02:53]}  Nf5 {[%clk 0:02:22]} 15. Bf2 {[%clk 0:02:49]}  d4 {[%clk 0:02:23]} 16. Nc5 {[%clk 0:02:45]}  Bc6 {[%clk 0:02:20]} 17. Ne4 {[%clk 0:02:43]}  Rc8 {[%clk 0:02:11]} 18. O-O {[%clk 0:02:43]}  a5 {[%clk 0:02:08]} 19. g4 {[%clk 0:02:42]}  Ne7 {[%clk 0:02:08]} 20. Nxd4 {[%clk 0:02:41]}  Bb7 {[%clk 0:02:07]} 21. Nb5 {[%clk 0:02:38]}  Nd5 {[%clk 0:02:06]} 22. Nbd6 {[%clk 0:02:37]}  Nxf4 {[%clk 0:02:00]} 23. Nxb7 {[%clk 0:02:35]}  Qd5 {[%clk 0:02:01]} 24. Nbd6 {[%clk 0:02:29]}  Rcd8 {[%clk 0:01:55]} 25. Bg3 {[%clk 0:02:27]}  Qd4+ {[%clk 0:01:47]} 26. Kh1 {[%clk 0:02:25]}  Nd5 {[%clk 0:01:43]} 27. c3 {[%clk 0:02:20]}  bxc3 {[%clk 0:01:42]} 28. bxc3 {[%clk 0:02:20]}  Qe3 {[%clk 0:01:40]} 29. Rf3 {[%clk 0:02:07]}  Qb6 {[%clk 0:01:38]} 30. Rb1 {[%clk 0:02:04]}  Qc6 {[%clk 0:01:35]} 31. c4 {[%clk 0:02:03]}  Nb4 {[%clk 0:01:35]} 32. a3 {[%clk 0:02:01]}  Na6 {[%clk 0:01:33]} 33. Qf1 {[%clk 0:01:57]}  Rd7 {[%clk 0:01:24]} 34. Kg1 {[%clk 0:01:54]}  Nc5 {[%clk 0:01:16]} 35. Nxc5 {[%clk 0:01:54]}  Qxc5+ {[%clk 0:01:17]} 36. Qf2 {[%clk 0:01:50]}  Qxa3 {[%clk 0:01:17]} 37. d4 {[%clk 0:01:50]}  Qa2 {[%clk 0:01:16]} 38. Rd1 {[%clk 0:01:46]}  Qc2 {[%clk 0:01:11]} 39. Rf1 {[%clk 0:01:43]}  Qb2 {[%clk 0:00:59]} 40. Bd3 {[%clk 0:01:39]}  Qc3 {[%clk 0:00:45]} 41. Bxg6 {[%clk 0:01:30]}  Qb4 {[%clk 0:00:38]} 42. Bxf7+ {[%clk 0:01:29]}  Kh8 {[%clk 0:00:38]} 43. Bxe6 {[%clk 0:01:28]}  Rdd8 {[%clk 0:00:38]} 44. Rxf8+ {[%clk 0:01:28]}  Rxf8 {[%clk 0:00:39]} 45. Qxf8+ {[%clk 0:01:28]}  Bxf8 {[%clk 0:00:39]} 46. Rxf8+ {[%clk 0:01:28]}  Kg7 {[%clk 0:00:39]} 47. Rg8+ {[%clk 0:01:28]}  Kh6 {[%clk 0:00:37]} 48. Bf4# {[%clk 0:01:28]} 1-0


[Site "https://www.chess.com"]

[Event "Titled Tuesday Blitz November 07 Late 2023"]
[White "aghasiyevkamal"]
[Black "Harish, Neeraj"]
[BlackFideId "30958130"]
[WhiteElo "2615"]
[BlackElo "2330"]
[Result "0-1"]
[Round "10"]
[TimeControl "180+1"]
[Date "2023.11.07"]
[WhiteClock "0:00:02"]
[BlackClock "0:00:06"]
[Board "35"]

1. e4 {[%clk 0:03:00]}  c5 {[%clk 0:02:59]} 2. Nf3 {[%clk 0:02:59]}  Nc6 {[%clk 0:02:59]} 3. Bb5 {[%clk 0:02:58]}  g6 {[%clk 0:02:57]} 4. O-O {[%clk 0:02:53]}  Bg7 {[%clk 0:02:53]} 5. Re1 {[%clk 0:02:52]}  e5 {[%clk 0:02:44]} 6. Bxc6 {[%clk 0:02:50]}  dxc6 {[%clk 0:02:43]} 7. a4 {[%clk 0:02:47]}  a5 {[%clk 0:02:30]} 8. Na3 {[%clk 0:02:43]}  Qe7 {[%clk 0:02:18]} 9. Nc4 {[%clk 0:02:41]}  Bg4 {[%clk 0:02:16]} 10. h3 {[%clk 0:02:27]}  Bxf3 {[%clk 0:02:14]} 11. Qxf3 {[%clk 0:02:26]}  Nf6 {[%clk 0:02:15]} 12. d3 {[%clk 0:02:11]}  Nd7 {[%clk 0:02:13]} 13. Bd2 {[%clk 0:02:10]}  b6 {[%clk 0:02:08]} 14. Qg3 {[%clk 0:01:56]}  O-O {[%clk 0:02:02]} 15. Bc3 {[%clk 0:01:57]}  Rae8 {[%clk 0:01:36]} 16. Ra3 {[%clk 0:01:54]}  Kh8 {[%clk 0:01:17]} 17. Rb3 {[%clk 0:01:49]}  Qd8 {[%clk 0:01:03]} 18. f4 {[%clk 0:01:43]}  exf4 {[%clk 0:00:42]} 19. Bxg7+ {[%clk 0:01:41]}  Kxg7 {[%clk 0:00:42]} 20. Qxf4 {[%clk 0:01:42]}  f5 {[%clk 0:00:39]} 21. e5 {[%clk 0:00:44]}  Qc7 {[%clk 0:00:20]} 22. d4 {[%clk 0:00:42]}  cxd4 {[%clk 0:00:20]} 23. Qxd4 {[%clk 0:00:42]}  Re6 {[%clk 0:00:19]} 24. Rc3 {[%clk 0:00:30]}  c5 {[%clk 0:00:19]} 25. Qd5 {[%clk 0:00:27]}  Rfe8 {[%clk 0:00:19]} 26. Rd3 {[%clk 0:00:20]}  Nf8 {[%clk 0:00:17]} 27. Nd6 {[%clk 0:00:18]}  Qe7 {[%clk 0:00:15]} 28. Nxe8+ {[%clk 0:00:18]}  Qxe8 {[%clk 0:00:15]} 29. b3 {[%clk 0:00:17]}  g5 {[%clk 0:00:12]} 30. Rf3 {[%clk 0:00:14]}  f4 {[%clk 0:00:11]} 31. Rd1 {[%clk 0:00:13]}  Ng6 {[%clk 0:00:11]} 32. Qd7+ {[%clk 0:00:12]}  Qxd7 {[%clk 0:00:10]} 33. Rxd7+ {[%clk 0:00:13]}  Kh6 {[%clk 0:00:10]} 34. Rd6 {[%clk 0:00:13]}  Rxe5 {[%clk 0:00:10]} 35. Rxb6 {[%clk 0:00:13]}  Re2 {[%clk 0:00:09]} 36. Rf2 {[%clk 0:00:13]}  Re1+ {[%clk 0:00:09]} 37. Kh2 {[%clk 0:00:13]}  Kh5 {[%clk 0:00:08]} 38. Rb5 {[%clk 0:00:11]}  Nh4 {[%clk 0:00:08]} 39. Rxc5 {[%clk 0:00:11]}  Kg6 {[%clk 0:00:08]} 40. Rxa5 {[%clk 0:00:11]}  Nf5 {[%clk 0:00:08]} 41. Rxf5 {[%clk 0:00:11]}  Kxf5 {[%clk 0:00:08]} 42. Rd2 {[%clk 0:00:11]}  h5 {[%clk 0:00:06]} 43. g3 {[%clk 0:00:09]}  f3 {[%clk 0:00:06]} 44. a5 {[%clk 0:00:08]}  Ke4 {[%clk 0:00:06]} 45. c4 {[%clk 0:00:06]}  Ke3 {[%clk 0:00:06]} 46. Ra2 {[%clk 0:00:02]}  Re2+ {[%clk 0:00:06]} 0-1


[Site "https://www.chess.com"]

[Event "Titled Tuesday Blitz November 07 Late 2023"]
[White "Chigaev, Maksim"]
[Black "Awoki, Daniel Teidi"]
[WhiteFideId "4108116"]
[BlackFideId "2100827"]
[WhiteElo "2874"]
[BlackElo "2345"]
[Result "1-0"]
[Round "10"]
[TimeControl "180+1"]
[Date "2023.11.07"]
[WhiteClock "0:00:55"]
[BlackClock "0:00:00"]
[Board "36"]

1. Nf3 {[%clk 0:03:00]}  d5 {[%clk 0:02:58]} 2. c4 {[%clk 0:03:00]}  e6 {[%clk 0:02:58]} 3. g3 {[%clk 0:02:59]}  Nf6 {[%clk 0:02:58]} 4. Bg2 {[%clk 0:03:00]}  Be7 {[%clk 0:02:59]} 5. O-O {[%clk 0:03:00]}  O-O {[%clk 0:02:59]} 6. b3 {[%clk 0:03:00]}  b6 {[%clk 0:02:59]} 7. d4 {[%clk 0:02:58]}  Bb7 {[%clk 0:02:59]} 8. Bb2 {[%clk 0:02:59]}  Nbd7 {[%clk 0:02:58]} 9. Nc3 {[%clk 0:02:59]}  dxc4 {[%clk 0:02:48]} 10. bxc4 {[%clk 0:02:57]}  c5 {[%clk 0:02:46]} 11. d5 {[%clk 0:02:57]}  exd5 {[%clk 0:02:45]} 12. cxd5 {[%clk 0:02:54]}  Bd6 {[%clk 0:02:40]} 13. Nd2 {[%clk 0:02:51]}  a6 {[%clk 0:02:31]} 14. a4 {[%clk 0:02:42]}  Re8 {[%clk 0:02:23]} 15. Nc4 {[%clk 0:02:32]}  Ne5 {[%clk 0:02:21]} 16. Nxd6 {[%clk 0:02:33]}  Qxd6 {[%clk 0:02:22]} 17. e4 {[%clk 0:02:31]}  Nc4 {[%clk 0:02:10]} 18. Bc1 {[%clk 0:02:26]}  Qd7 {[%clk 0:02:02]} 19. Rb1 {[%clk 0:02:12]}  b5 {[%clk 0:01:50]} 20. axb5 {[%clk 0:02:09]}  axb5 {[%clk 0:01:51]} 21. Rxb5 {[%clk 0:02:02]}  Nxe4 {[%clk 0:01:49]} 22. Rxb7 {[%clk 0:01:41]}  Qxb7 {[%clk 0:01:45]} 23. Nxe4 {[%clk 0:01:42]}  Qb6 {[%clk 0:01:23]} 24. d6 {[%clk 0:01:37]}  Rad8 {[%clk 0:01:18]} 25. Bg5 {[%clk 0:01:14]}  f6 {[%clk 0:00:29]} 26. Qd5+ {[%clk 0:01:00]}  Kh8 {[%clk 0:00:30]} 27. Qxc4 {[%clk 0:01:01]}  fxg5 {[%clk 0:00:25]} 28. Nxg5 {[%clk 0:01:01]}  Rd7 {[%clk 0:00:06]} 29. Nf7+ {[%clk 0:00:56]}  Rxf7 {[%clk 0:00:06]} 30. Qxf7 {[%clk 0:00:57]}  Rd8 {[%clk 0:00:05]} 31. Re1 {[%clk 0:00:55]}  h6 {[%clk 0:00:00]} 32. d7 {[%clk 0:00:55]} 1-0


[Site "https://www.chess.com"]

[Event "Titled Tuesday Blitz November 07 Late 2023"]
[White "Kavutskiy, Konstantin"]
[Black "Nilsen, Tobias Lang"]
[WhiteFideId "2026384"]
[BlackFideId "1521624"]
[WhiteElo "2666"]
[BlackElo "2514"]
[Result "1/2-1/2"]
[Round "10"]
[TimeControl "180+1"]
[Date "2023.11.07"]
[WhiteClock "0:00:23"]
[BlackClock "0:00:06"]
[Board "42"]

1. Nf3 {[%clk 0:03:00]}  d5 {[%clk 0:02:47]} 2. e3 {[%clk 0:02:58]}  Nf6 {[%clk 0:02:47]} 3. c4 {[%clk 0:02:58]}  e6 {[%clk 0:02:47]} 4. b3 {[%clk 0:02:59]}  c5 {[%clk 0:02:48]} 5. cxd5 {[%clk 0:02:58]}  exd5 {[%clk 0:02:49]} 6. Nc3 {[%clk 0:02:58]}  Nc6 {[%clk 0:02:48]} 7. Bb5 {[%clk 0:02:56]}  Be7 {[%clk 0:02:48]} 8. O-O {[%clk 0:02:54]}  O-O {[%clk 0:02:48]} 9. d4 {[%clk 0:02:55]}  Ne4 {[%clk 0:02:48]} 10. Bb2 {[%clk 0:02:54]}  Bf6 {[%clk 0:02:47]} 11. Rc1 {[%clk 0:02:53]}  cxd4 {[%clk 0:02:46]} 12. Nxe4 {[%clk 0:02:45]}  dxe4 {[%clk 0:02:46]} 13. Nxd4 {[%clk 0:02:35]}  Nxd4 {[%clk 0:02:41]} 14. Bxd4 {[%clk 0:02:36]}  Bxd4 {[%clk 0:02:38]} 15. Qxd4 {[%clk 0:02:37]}  Qxd4 {[%clk 0:02:38]} 16. exd4 {[%clk 0:02:37]}  Rd8 {[%clk 0:02:38]} 17. Rfd1 {[%clk 0:02:29]}  Bg4 {[%clk 0:02:33]} 18. Rd2 {[%clk 0:02:29]}  Rac8 {[%clk 0:02:23]} 19. Rxc8 {[%clk 0:02:28]}  Rxc8 {[%clk 0:02:24]} 20. h3 {[%clk 0:02:28]}  Bf5 {[%clk 0:02:22]} 21. g4 {[%clk 0:02:27]}  Bg6 {[%clk 0:02:23]} 22. Bc4 {[%clk 0:02:20]}  Kf8 {[%clk 0:02:21]} 23. Kg2 {[%clk 0:02:18]}  Ke7 {[%clk 0:02:21]} 24. Kg3 {[%clk 0:02:18]}  Kd6 {[%clk 0:02:21]} 25. Kf4 {[%clk 0:02:19]}  a6 {[%clk 0:02:19]} 26. a4 {[%clk 0:02:12]}  f6 {[%clk 0:02:00]} 27. a5 {[%clk 0:02:09]}  Rc7 {[%clk 0:01:33]} 28. Ra2 {[%clk 0:02:02]}  Re7 {[%clk 0:00:58]} 29. h4 {[%clk 0:01:58]}  Be8 {[%clk 0:00:56]} 30. Re2 {[%clk 0:01:54]}  Bc6 {[%clk 0:00:54]} 31. h5 {[%clk 0:01:40]}  g5+ {[%clk 0:00:45]} 32. hxg6 {[%clk 0:01:31]}  hxg6 {[%clk 0:00:45]} 33. g5 {[%clk 0:01:28]}  fxg5+ {[%clk 0:00:29]} 34. Kxg5 {[%clk 0:01:29]}  Be8 {[%clk 0:00:30]} 35. Re3 {[%clk 0:01:23]}  Bf7 {[%clk 0:00:17]} 36. Kf6 {[%clk 0:01:16]}  Be8 {[%clk 0:00:16]} 37. Rh3 {[%clk 0:01:14]}  Bd7 {[%clk 0:00:12]} 38. Rg3 {[%clk 0:01:12]}  Bf5 {[%clk 0:00:13]} 39. Rg1 {[%clk 0:00:57]}  Rh7 {[%clk 0:00:11]} 40. Rg2 {[%clk 0:00:50]}  Rh1 {[%clk 0:00:11]} 41. Bf7 {[%clk 0:00:48]}  Rf1 {[%clk 0:00:12]} 42. Bxg6 {[%clk 0:00:47]}  Bxg6 {[%clk 0:00:12]} 43. Kxg6 {[%clk 0:00:48]}  Kd5 {[%clk 0:00:13]} 44. Kg5 {[%clk 0:00:41]}  Kxd4 {[%clk 0:00:13]} 45. Kg4 {[%clk 0:00:39]}  Kd3 {[%clk 0:00:14]} 46. Kg3 {[%clk 0:00:38]}  Ke2 {[%clk 0:00:13]} 47. Rh2 {[%clk 0:00:37]}  Kd3 {[%clk 0:00:11]} 48. Rh7 {[%clk 0:00:37]}  Rg1+ {[%clk 0:00:08]} 49. Kh2 {[%clk 0:00:36]}  Rf1 {[%clk 0:00:09]} 50. Kg2 {[%clk 0:00:36]}  Rb1 {[%clk 0:00:08]} 51. Rxb7 {[%clk 0:00:33]}  Rb2 {[%clk 0:00:07]} 52. b4 {[%clk 0:00:32]}  e3 {[%clk 0:00:07]} 53. Rd7+ {[%clk 0:00:31]}  Kc4 {[%clk 0:00:07]} 54. Rc7+ {[%clk 0:00:26]}  Kb5 {[%clk 0:00:07]} 55. Rb7+ {[%clk 0:00:25]}  Ka4 {[%clk 0:00:08]} 56. Kf1 {[%clk 0:00:22]}  Rxf2+ {[%clk 0:00:07]} 57. Ke1 {[%clk 0:00:22]}  Rb2 {[%clk 0:00:07]} 58. Rb6 {[%clk 0:00:21]}  Rxb4 {[%clk 0:00:06]} 59. Rxa6 {[%clk 0:00:22]}  Rb5 {[%clk 0:00:05]} 60. Ke2 {[%clk 0:00:22]}  Rxa5 {[%clk 0:00:05]} 61. Rxa5+ {[%clk 0:00:23]}  Kxa5 {[%clk 0:00:06]} 62. Kxe3 {[%clk 0:00:23]} 1/2-1/2


[Site "https://www.chess.com"]

[Event "Titled Tuesday Blitz November 07 Late 2023"]
[White "reevecanada"]
[Black "Bilan, Danila"]
[BlackFideId "24161918"]
[WhiteElo "2642"]
[BlackElo "2512"]
[Result "0-1"]
[Round "10"]
[TimeControl "180+1"]
[Date "2023.11.07"]
[WhiteClock "0:02:38"]
[BlackClock "0:01:33"]
[Board "43"]

1. e4 {[%clk 0:03:00]}  c6 {[%clk 0:02:53]} 2. c4 {[%clk 0:02:58]}  d5 {[%clk 0:02:54]} 3. cxd5 {[%clk 0:02:59]}  cxd5 {[%clk 0:02:54]} 4. exd5 {[%clk 0:03:00]}  a6 {[%clk 0:02:55]} 5. Nc3 {[%clk 0:03:00]}  Nf6 {[%clk 0:02:55]} 6. Qf3 {[%clk 0:02:59]}  g6 {[%clk 0:02:52]} 7. h3 {[%clk 0:02:57]}  Bg7 {[%clk 0:02:52]} 8. Bc4 {[%clk 0:02:57]}  O-O {[%clk 0:02:51]} 9. Nge2 {[%clk 0:02:57]}  b5 {[%clk 0:02:46]} 10. d6 {[%clk 0:02:56]}  Ra7 {[%clk 0:02:44]} 11. dxe7 {[%clk 0:02:56]}  Rxe7 {[%clk 0:02:42]} 12. Bb3 {[%clk 0:02:55]}  Bb7 {[%clk 0:02:40]} 13. Qg3 {[%clk 0:02:52]}  Nh5 {[%clk 0:02:29]} 14. Qh2 {[%clk 0:02:50]}  Be5 {[%clk 0:02:17]} 15. g3 {[%clk 0:02:49]}  Bxh1 {[%clk 0:02:15]} 16. Qxh1 {[%clk 0:02:49]}  Bxc3 {[%clk 0:02:09]} 17. dxc3 {[%clk 0:02:47]}  Rfe8 {[%clk 0:02:07]} 18. Be3 {[%clk 0:02:44]}  Rxe3 {[%clk 0:01:53]} 19. fxe3 {[%clk 0:02:44]}  Rxe3 {[%clk 0:01:54]} 20. Kf2 {[%clk 0:02:41]}  Rxe2+ {[%clk 0:01:51]} 21. Kxe2 {[%clk 0:02:41]}  Nxg3+ {[%clk 0:01:50]} 22. Kf2 {[%clk 0:02:40]}  Nxh1+ {[%clk 0:01:49]} 23. Rxh1 {[%clk 0:02:41]}  Qd2+ {[%clk 0:01:48]} 24. Kg3 {[%clk 0:02:40]}  Nc6 {[%clk 0:01:43]} 25. Rf1 {[%clk 0:02:39]}  Ne5 {[%clk 0:01:41]} 26. Rd1 {[%clk 0:02:38]}  Qe3+ {[%clk 0:01:37]} 27. Kg2 {[%clk 0:02:37]}  Qf3+ {[%clk 0:01:37]} 28. Kg1 {[%clk 0:02:37]}  Qxh3 {[%clk 0:01:35]} 29. Kf2 {[%clk 0:02:37]}  Ng4+ {[%clk 0:01:33]} 30. Ke2 {[%clk 0:02:37]}  Qe3+ {[%clk 0:01:33]} 31. Kf1 {[%clk 0:02:38]}  Qf2# {[%clk 0:01:33]} 0-1


[Site "https://www.chess.com"]

[Event "Titled Tuesday Blitz November 07 Late 2023"]
[White "Seemann, Jakub"]
[Black "Sreyas Payyappat"]
[WhiteFideId "21874697"]
[BlackFideId "46674969"]
[WhiteElo "2638"]
[BlackElo "2510"]
[Result "1-0"]
[Round "10"]
[TimeControl "180+1"]
[Date "2023.11.07"]
[WhiteClock "0:01:40"]
[BlackClock "0:01:09"]
[Board "44"]

1. Nf3 {[%clk 0:02:55]}  Nf6 {[%clk 0:02:59]} 2. g3 {[%clk 0:02:56]}  c5 {[%clk 0:02:59]} 3. Bg2 {[%clk 0:02:54]}  g6 {[%clk 0:02:59]} 4. O-O {[%clk 0:02:55]}  Bg7 {[%clk 0:02:58]} 5. b3 {[%clk 0:02:54]}  O-O {[%clk 0:02:59]} 6. Bb2 {[%clk 0:02:55]}  Nc6 {[%clk 0:02:59]} 7. c4 {[%clk 0:02:53]}  b6 {[%clk 0:02:54]} 8. d4 {[%clk 0:02:53]}  Bb7 {[%clk 0:02:55]} 9. d5 {[%clk 0:02:52]}  Nb8 {[%clk 0:02:55]} 10. Nbd2 {[%clk 0:02:51]}  d6 {[%clk 0:02:56]} 11. e4 {[%clk 0:02:51]}  Nbd7 {[%clk 0:02:56]} 12. Re1 {[%clk 0:02:51]}  e5 {[%clk 0:02:54]} 13. Qc2 {[%clk 0:02:50]}  Nh5 {[%clk 0:02:50]} 14. Rad1 {[%clk 0:02:50]}  f5 {[%clk 0:02:49]} 15. exf5 {[%clk 0:02:51]}  gxf5 {[%clk 0:02:50]} 16. Nf1 {[%clk 0:02:48]}  f4 {[%clk 0:02:44]} 17. Nh4 {[%clk 0:02:41]}  Qg5 {[%clk 0:02:40]} 18. Nd2 {[%clk 0:02:36]}  fxg3 {[%clk 0:02:27]} 19. hxg3 {[%clk 0:02:35]}  Rxf2 {[%clk 0:02:22]} 20. Kxf2 {[%clk 0:02:31]}  Qxg3+ {[%clk 0:02:21]} 21. Kg1 {[%clk 0:02:32]}  Qxh4 {[%clk 0:02:22]} 22. Ne4 {[%clk 0:02:29]}  Rf8 {[%clk 0:02:17]} 23. Nxd6 {[%clk 0:02:28]}  Ndf6 {[%clk 0:02:05]} 24. Nf5 {[%clk 0:02:15]}  Qg5 {[%clk 0:02:01]} 25. Nxg7 {[%clk 0:02:14]}  Kxg7 {[%clk 0:01:58]} 26. Rxe5 {[%clk 0:02:12]}  Qg4 {[%clk 0:01:56]} 27. Re7+ {[%clk 0:02:11]}  Kg8 {[%clk 0:01:55]} 28. Rxb7 {[%clk 0:01:55]}  Ng3 {[%clk 0:01:36]} 29. Re1 {[%clk 0:01:44]}  Nfh5 {[%clk 0:01:09]} 30. Qxh7# {[%clk 0:01:40]} 1-0


[Site "https://www.chess.com"]

[Event "Titled Tuesday Blitz November 07 Late 2023"]
[White "Estrada Nieto, Julian"]
[Black "Pinheiro, Iung Alicio de O."]
[WhiteFideId "5101018"]
[BlackFideId "2104350"]
[WhiteElo "2452"]
[BlackElo "2594"]
[Result "1-0"]
[Round "10"]
[TimeControl "180+1"]
[Date "2023.11.07"]
[WhiteClock "0:00:06"]
[BlackClock "0:00:00"]
[Board "48"]

1. e4 {[%clk 0:03:00]}  c5 {[%clk 0:02:51]} 2. Nf3 {[%clk 0:03:00]}  Nc6 {[%clk 0:02:51]} 3. Bb5 {[%clk 0:02:58]}  e6 {[%clk 0:02:52]} 4. O-O {[%clk 0:02:57]}  Nge7 {[%clk 0:02:52]} 5. Re1 {[%clk 0:02:58]}  Nd4 {[%clk 0:02:52]} 6. Nxd4 {[%clk 0:02:56]}  cxd4 {[%clk 0:02:52]} 7. d3 {[%clk 0:02:55]}  a6 {[%clk 0:02:40]} 8. Ba4 {[%clk 0:02:55]}  b5 {[%clk 0:02:39]} 9. Bb3 {[%clk 0:02:55]}  Nc6 {[%clk 0:02:39]} 10. Nd2 {[%clk 0:02:52]}  Bd6 {[%clk 0:02:28]} 11. Qh5 {[%clk 0:02:35]}  Qc7 {[%clk 0:02:01]} 12. Nf3 {[%clk 0:02:30]}  Ne5 {[%clk 0:01:15]} 13. Nxe5 {[%clk 0:02:25]}  Bxe5 {[%clk 0:01:15]} 14. Qh4 {[%clk 0:01:58]}  h6 {[%clk 0:01:08]} 15. f4 {[%clk 0:01:54]}  g5 {[%clk 0:01:07]} 16. fxg5 {[%clk 0:01:49]}  hxg5 {[%clk 0:01:07]} 17. Qxg5 {[%clk 0:01:45]}  Bxh2+ {[%clk 0:01:04]} 18. Kf1 {[%clk 0:01:43]}  Bg3 {[%clk 0:01:01]} 19. Bd2 {[%clk 0:01:36]}  Bb7 {[%clk 0:00:44]} 20. Ke2 {[%clk 0:01:30]}  Bxe1 {[%clk 0:00:33]} 21. Bxe1 {[%clk 0:01:30]}  Qd8 {[%clk 0:00:34]} 22. Qg7 {[%clk 0:01:19]}  Rf8 {[%clk 0:00:30]} 23. Qxd4 {[%clk 0:01:14]}  Qg5 {[%clk 0:00:27]} 24. Qd6 {[%clk 0:01:00]}  Qxg2+ {[%clk 0:00:26]} 25. Kd1 {[%clk 0:00:52]}  Qf3+ {[%clk 0:00:24]} 26. Kc1 {[%clk 0:00:45]}  Rg8 {[%clk 0:00:21]} 27. a4 {[%clk 0:00:24]}  Rg1 {[%clk 0:00:20]} 28. Kd2 {[%clk 0:00:19]}  Rg2+ {[%clk 0:00:19]} 29. Kc3 {[%clk 0:00:18]}  Rc8+ {[%clk 0:00:17]} 30. Kb4 {[%clk 0:00:18]}  Qf6 {[%clk 0:00:10]} 31. e5 {[%clk 0:00:08]}  Qf4+ {[%clk 0:00:08]} 32. Ka5 {[%clk 0:00:07]}  Rg5 {[%clk 0:00:00]} 33. Bb4 {[%clk 0:00:06]} 1-0


[Site "https://www.chess.com"]

[Event "Titled Tuesday Blitz November 07 Late 2023"]
[White "Makaraci, Tunahan"]
[Black "Shapiro, Viktor"]
[WhiteFideId "6356559"]
[BlackFideId "4175700"]
[WhiteElo "2451"]
[BlackElo "2590"]
[Result "1-0"]
[Round "10"]
[TimeControl "180+1"]
[Date "2023.11.07"]
[WhiteClock "0:01:28"]
[BlackClock "0:00:17"]
[Board "49"]

1. e4 {[%clk 0:03:00]}  Nf6 {[%clk 0:02:54]} 2. e5 {[%clk 0:03:00]}  Nd5 {[%clk 0:02:54]} 3. d4 {[%clk 0:03:01]}  d6 {[%clk 0:02:55]} 4. c4 {[%clk 0:03:00]}  Nb6 {[%clk 0:02:55]} 5. f4 {[%clk 0:02:59]}  dxe5 {[%clk 0:02:55]} 6. fxe5 {[%clk 0:02:59]}  c5 {[%clk 0:02:53]} 7. d5 {[%clk 0:02:55]}  g6 {[%clk 0:02:39]} 8. Nc3 {[%clk 0:02:50]}  Bg7 {[%clk 0:02:37]} 9. Bf4 {[%clk 0:02:50]}  O-O {[%clk 0:02:37]} 10. Nf3 {[%clk 0:02:50]}  Bg4 {[%clk 0:02:24]} 11. h3 {[%clk 0:02:43]}  Bxf3 {[%clk 0:02:23]} 12. Qxf3 {[%clk 0:02:44]}  e6 {[%clk 0:02:23]} 13. O-O-O {[%clk 0:02:40]}  exd5 {[%clk 0:02:22]} 14. cxd5 {[%clk 0:02:36]}  N8d7 {[%clk 0:02:22]} 15. Qg3 {[%clk 0:02:19]}  Re8 {[%clk 0:02:00]} 16. Bb5 {[%clk 0:02:18]}  Bxe5 {[%clk 0:01:50]} 17. Bxe5 {[%clk 0:02:09]}  Rxe5 {[%clk 0:01:49]} 18. Bxd7 {[%clk 0:02:08]}  Nxd7 {[%clk 0:01:49]} 19. Rhe1 {[%clk 0:02:07]}  Qg5+ {[%clk 0:01:43]} 20. Qxg5 {[%clk 0:02:07]}  Rxg5 {[%clk 0:01:43]} 21. Re7 {[%clk 0:02:04]}  Rd8 {[%clk 0:01:40]} 22. Ne4 {[%clk 0:02:04]}  Rxg2 {[%clk 0:01:21]} 23. Rxd7 {[%clk 0:02:04]}  Rxd7 {[%clk 0:01:22]} 24. Nf6+ {[%clk 0:02:04]}  Kf8 {[%clk 0:01:22]} 25. Nxd7+ {[%clk 0:02:05]}  Ke7 {[%clk 0:01:23]} 26. Nxc5 {[%clk 0:02:05]}  Rg5 {[%clk 0:01:05]} 27. d6+ {[%clk 0:02:03]}  Kd8 {[%clk 0:01:05]} 28. Nxb7+ {[%clk 0:02:03]}  Kd7 {[%clk 0:01:05]} 29. Re1 {[%clk 0:02:02]}  Kc6 {[%clk 0:00:57]} 30. Re7 {[%clk 0:02:01]}  Rd5 {[%clk 0:00:48]} 31. b4 {[%clk 0:01:48]}  h5 {[%clk 0:00:33]} 32. a4 {[%clk 0:01:47]}  a6 {[%clk 0:00:32]} 33. a5 {[%clk 0:01:42]}  g5 {[%clk 0:00:29]} 34. Rc7+ {[%clk 0:01:42]}  Kb5 {[%clk 0:00:27]} 35. Rc5+ {[%clk 0:01:42]}  Rxc5+ {[%clk 0:00:27]} 36. Nxc5 {[%clk 0:01:41]}  Kc6 {[%clk 0:00:27]} 37. d7 {[%clk 0:01:40]}  Kc7 {[%clk 0:00:28]} 38. Kd2 {[%clk 0:01:36]}  f5 {[%clk 0:00:23]} 39. Ke3 {[%clk 0:01:35]}  g4 {[%clk 0:00:22]} 40. hxg4 {[%clk 0:01:35]}  fxg4 {[%clk 0:00:21]} 41. Kf4 {[%clk 0:01:35]}  Kd8 {[%clk 0:00:21]} 42. Nxa6 {[%clk 0:01:29]}  Kxd7 {[%clk 0:00:21]} 43. Nc5+ {[%clk 0:01:29]}  Kc6 {[%clk 0:00:22]} 44. Ne4 {[%clk 0:01:28]}  Kb5 {[%clk 0:00:19]} 45. Nf6 {[%clk 0:01:28]}  g3 {[%clk 0:00:18]} 46. Kxg3 {[%clk 0:01:28]}  Kxb4 {[%clk 0:00:17]} 47. a6 {[%clk 0:01:28]} 1-0


[Site "https://www.chess.com"]